[Event "16th Marseille Festival 2023"]
[Site "Marseille"]
[Date "2023.12.30"]
[Round "4.2"]
[White "Bilych, Olexiy"]
[Black "Fabre, Jean-charles"]
[Result "1-0"]
[WhiteElo "2433"]
[BlackElo "1883"]
[PlyCount "101"]
[EventDate "2023.12.30"]
[EventType "swiss"]
[EventCountry "FRA"]
[TimeControl "5400+30"]

1. d4 {[%emt 0:00:02]} Nf6 {[%emt 0:01:12]} 2. c4 {[%emt 0:00:08]} e6 {[%emt 0:00:32]} 3. Nc3 {[%emt 0:00:06]} Bb4 {[%emt 0:00:29]} 4. e3 {[%emt 0:00:05]} O-O {[%emt 0:01:09]} 5. Bd3 {[%emt 0:00:06]} d5 {[%emt 0:00:55]} 6. a3 {[%emt 0:00:06]} Bxc3+ {[%emt 0:01:14]} 7. bxc3 {[%emt 0:00:03]} dxc4 {[%emt 0:00:05]} 8. Bxc4 {[%emt 0:00:03]} c5 {[%emt 0:00:13]} 9. Bd3 {[%emt 0:00:09]} Qc7 {[%emt 0:05:43]} 10. Bb2 {[%emt 0:00:06]} b6 {[%emt 0:06:19]} 11. Qe2 {[%emt 0:00:07]} Bb7 {[%emt 0:08:54]} 12. e4 {[%emt 0:00:06]} Nbd7 {[%emt 0:12:13]} 13. Nh3 {[%emt 0:00:06]} e5 {[%emt 0:08:09]} 14. d5 {[%emt 0:00:05]} c4 {[%emt 0:04:04]} 15. Bxc4 {[%emt 0:00:05]} Nc5 {[%emt 0:00:34]} 16. f3 {[%emt 0:00:05]} Ne8 {[%emt 0:05:24]} 17. Ba2 {[%emt 0:00:11]} Nd6 {[%emt 0:04:03]} 18. c4 {[%emt 0:00:38]} Rae8 {[%emt 0:01:48]} 19. O-O {[%emt 0:01:57]} Na4 {[%emt 0:03:21]} 20. Nf2 {[%emt 0:03:46]} Nxb2 {[%emt 0:34:09]} 21. Qxb2 {[%emt 0:00:10]} Ba6 {[%emt 0:00:00]} 22. Rfc1 {[%emt 0:03:22]} Nb7 {[%emt 0:00:00]} 23. Nd3 {[%emt 0:03:19]} Nc5 {[%emt 0:00:00]} 24. Nxc5 {[%emt 0:00:58]} Qxc5+ {[%emt 0:00:00]} 25. Qf2 {[%emt 0:00:16]} Rc8 {[%emt 0:00:00]} 26. Qxc5 {[%emt 0:00:10]} Rxc5 {[%emt 0:00:00]} 27. Rab1 {[%emt 0:00:11]} Rfc8 {[%emt 0:00:00]} 28. Rb4 {[%emt 0:00:12]} Ra5 {[%emt 0:00:00]} 29. Rc3 {[%emt 0:00:22]} Kf8 {[%emt 0:00:00]} 30. Kf2 {[%emt 0:00:08]} Ke7 {[%emt 0:00:00]} 31. Ke3 {[%emt 0:00:08]} Kd6 {[%emt 0:00:00]} 32. h4 {[%emt 0:07:25]} Rc7 {[%emt 0:00:00]} 33. g3 {[%emt 0:00:31]} Rac5 {[%emt 0:00:00]} 34. f4 {[%emt 0:02:53]} f6 {[%emt 0:00:00]} 35. Kd2 {[%emt 0:02:54]} Bc8 {[%emt 0:00:41]} 36. Bb1 {[%emt 0:01:56]} Bd7 {[%emt 0:01:00]} 37. Bd3 {[%emt 0:00:28]} b5 {[%emt 0:00:59]} 38. f5 {[%emt 0:02:52]} Be8 {[%emt 0:01:47]} 39. Be2 {[%emt 0:01:47]} g6 {[%emt 0:01:36]} 40. fxg6 {[%emt 0:03:14]} hxg6 {[%emt 0:00:54]} 41. Rf3 {[%emt 0:02:30]} f5 {[%emt 0:01:39]} 42. exf5 {[%emt 0:00:27]} bxc4 {[%emt 0:00:22]} 43. Kc3 {[%emt 0:03:24]} Kxd5 {[%emt 0:00:28]} 44. fxg6 {[%emt 0:00:55]} Bxg6 {[%emt 0:00:26]} 45. Rf8 {[%emt 0:02:08]} Bf7 {[%emt 0:02:06]} 46. h5 {[%emt 0:01:12]} Ke4 {[%emt 0:00:21]} 47. h6 {[%emt 0:01:05]} Be6 {[%emt 0:01:11]} 48. Rf6 {[%emt 0:00:40]} Bg8 {[%emt 0:00:00]} 49. g4 {[%emt 0:00:58]} Ke3 {[%emt 0:00:11]} 50. Rb2 {[%emt 0:04:41]} e4 {[%emt 0:00:40]} 51. Bd1 {[%emt 0:00:26]} 1-0

[Event "16th Marseille Festival 2023"]
[Site "Marseille"]
[Date "2023.12.30"]
[Round "4.3"]
[White "Girel, Joseph"]
[Black "Gusain, Himal"]
[Result "1/2-1/2"]
[WhiteElo "2495"]
[BlackElo "2457"]
[PlyCount "42"]
[EventDate "2023.12.30"]
[EventType "swiss"]
[EventCountry "FRA"]
[TimeControl "5400+30"]

1. e4 {[%emt 1:31:00]} Nf6 {[%emt 0:09:07]} 2. e5 {[%emt 0:00:00]} Nd5 {[%emt 0:00:05]} 3. d4 {[%emt 0:00:00]} d6 {[%emt 0:00:05]} 4. Nf3 {[%emt 0:00:00]} dxe5 {[%emt 0:00:16]} 5. Nxe5 {[%emt 0:00:00]} g6 {[%emt 0:00:20]} 6. Bc4 {[%emt 0:00:00]} c6 {[%emt 0:00:21]} 7. O-O {[%emt 0:00:00]} Bg7 {[%emt 0:00:10]} 8. Re1 {[%emt 0:00:00]} O-O {[%emt 0:00:31]} 9. Bb3 {[%emt 0:00:00]} Nd7 {[%emt 0:01:20]} 10. Nf3 {[%emt 0:00:00]} b5 {[%emt 0:07:26]} 11. Bg5 {[%emt 0:00:00]} N7b6 {[%emt 0:11:08]} 12. Nbd2 {[%emt 0:00:00]} a5 {[%emt 0:04:25]} 13. c4 {[%emt 0:00:00]} bxc4 {[%emt 0:04:26]} 14. Nxc4 {[%emt 0:00:00]} Nxc4 {[%emt 0:03:51]} 15. Bxc4 {[%emt 0:00:00]} Bg4 {[%emt 0:00:37]} 16. b3 {[%emt 0:00:00]} Qd6 {[%emt 0:05:10]} 17. Rc1 {[%emt 0:00:00]} e6 {[%emt 0:03:17]} 18. Re4 {[%emt 0:00:00]} Bf5 {[%emt 0:06:01]} 19. Re1 {[%emt 0:00:00]} Bg4 {[%emt 0:00:43]} 20. Re4 {[%emt 0:00:00]} Bf5 {[%emt 0:00:17]} 21. Re1 {[%emt 0:00:00]} Bg4 {[%emt 0:00:52]} 1/2-1/2

[Event "16th Marseille Festival 2023"]
[Site "Marseille"]
[Date "2023.12.30"]
[Round "4.4"]
[White "Philippe, Guillaume"]
[Black "Perret, Timothe"]
[Result "1-0"]
[WhiteElo "2334"]
[BlackElo "1854"]
[PlyCount "51"]
[EventDate "2023.12.30"]
[EventType "swiss"]
[EventCountry "FRA"]
[TimeControl "5400+30"]

1. f4 {[%emt 0:00:10]} Nf6 {[%emt 0:00:12]} 2. Nf3 {[%emt 0:00:04]} g6 {[%emt 0:00:11]} 3. g3 {[%emt 0:00:05]} Bg7 {[%emt 0:03:02]} 4. Bg2 {[%emt 0:00:04]} d6 {[%emt 0:01:53]} 5. O-O {[%emt 0:00:16]} O-O {[%emt 0:01:12]} 6. d3 {[%emt 0:00:04]} c5 {[%emt 0:11:00]} 7. e4 {[%emt 0:02:09]} Nc6 {[%emt 0:01:35]} 8. h3 {[%emt 0:00:09]} c4 {[%emt 0:06:52]} 9. Nc3 {[%emt 0:01:07]} cxd3 {[%emt 0:08:03]} 10. cxd3 {[%emt 0:00:19]} e5 {[%emt 0:03:17]} 11. fxe5 {[%emt 0:28:35]} dxe5 {[%emt 0:01:31]} 12. Be3 {[%emt 0:00:57]} h6 {[%emt 0:14:00]} 13. Qd2 {[%emt 0:00:14]} Kh7 {[%emt 0:00:15]} 14. g4 {[%emt 0:00:05]} Ng8 {[%emt 0:03:01]} 15. g5 {[%emt 0:08:31]} h5 {[%emt 0:00:55]} 16. Nh4 {[%emt 0:05:08]} Nge7 {[%emt 0:03:56]} 17. Nd5 {[%emt 0:04:33]} Nxd5 {[%emt 0:02:38]} 18. exd5 {[%emt 0:00:02]} Nd4 {[%emt 0:04:45]} 19. Rf2 {[%emt 0:06:57]} Bd7 {[%emt 0:03:39]} 20. Raf1 {[%emt 0:00:21]} Qe7 {[%emt 0:02:32]} 21. Rf6 {[%emt 0:24:38]} Bxf6 {[%emt 0:08:54]} 22. gxf6 {[%emt 0:00:09]} Qd6 {[%emt 0:00:13]} 23. Be4 {[%emt 0:03:26]} Bxh3 {[%emt 0:02:35]} 24. Bxd4 {[%emt 0:00:35]} Bxf1 {[%emt 0:01:38]} 25. Qg5 {[%emt 0:00:33]} exd4 {[%emt 0:00:15]} 26. Bxg6+ {[%emt 0:00:08]} 1-0

[Event "16th Marseille Festival 2023"]
[Site "Marseille"]
[Date "2023.12.30"]
[Round "4.5"]
[White "Pinto, Axel"]
[Black "Petrosyan, Armen"]
[Result "0-1"]
[WhiteElo "1952"]
[BlackElo "2368"]
[PlyCount "56"]
[EventDate "2023.12.30"]
[EventType "swiss"]
[EventCountry "FRA"]
[TimeControl "5400+30"]

1. d4 {[%emt 0:00:10]} d5 {[%emt 0:00:08]} 2. c4 {[%emt 0:00:07]} e6 {[%emt 0:00:05]} 3. Nf3 {[%emt 0:00:04]} Nf6 {[%emt 0:00:09]} 4. g3 {[%emt 0:00:05]} Bb4+ {[%emt 0:00:11]} 5. Bd2 {[%emt 0:00:07]} Be7 {[%emt 0:00:05]} 6. Bg2 {[%emt 0:00:09]} O-O {[%emt 0:00:07]} 7. O-O {[%emt 0:00:07]} c6 {[%emt 0:00:17]} 8. Qc2 {[%emt 0:00:25]} b6 {[%emt 0:00:12]} 9. Bf4 {[%emt 0:03:52]} Nbd7 {[%emt 0:00:26]} 10. Nbd2 {[%emt 0:02:14]} Ba6 {[%emt 0:01:13]} 11. Rfd1 {[%emt 0:02:17]} Nh5 {[%emt 0:22:59]} 12. Rac1 {[%emt 0:17:16]} Nxf4 {[%emt 0:00:46]} 13. gxf4 {[%emt 0:01:17]} Rc8 {[%emt 0:03:12]} 14. e3 {[%emt 0:07:48]} Bd6 {[%emt 0:17:03]} 15. Ng5 {[%emt 0:10:19]} Nf6 {[%emt 0:01:01]} 16. Qa4 {[%emt 0:01:29]} Bxc4 {[%emt 0:01:19]} 17. Nxc4 {[%emt 0:03:29]} b5 {[%emt 0:00:34]} 18. Qxa7 {[%emt 0:03:07]} bxc4 {[%emt 0:00:07]} 19. Bh3 {[%emt 0:05:57]} Ra8 {[%emt 0:08:34]} 20. Qb7 {[%emt 0:00:22]} Qb8 {[%emt 0:00:22]} 21. Qxb8 {[%emt 0:01:52]} Rfxb8 {[%emt 0:00:18]} 22. b3 {[%emt 0:02:36]} h6 {[%emt 0:00:38]} 23. Nf3 {[%emt 0:06:58]} Rxa2 {[%emt 0:00:26]} 24. bxc4 {[%emt 0:00:40]} Ne4 {[%emt 0:00:14]} 25. Rf1 {[%emt 0:01:06]} Rbb2 {[%emt 0:02:12]} 26. cxd5 {[%emt 0:02:02]} cxd5 {[%emt 0:01:51]} 27. Bg2 {[%emt 0:02:22]} Nxf2 {[%emt 0:01:04]} 28. Ne1 {[%emt 0:00:16]} Ng4 {[%emt 0:01:15]} 0-1

[Event "16th Marseille Festival 2023"]
[Site "Marseille"]
[Date "2023.12.30"]
[Round "4.6"]
[White "Pichon, Ewen"]
[Black "Hileyan, Michel"]
[Result "1-0"]
[WhiteElo "2274"]
[BlackElo "1744"]
[PlyCount "93"]
[EventDate "2023.12.30"]
[EventType "swiss"]
[EventCountry "FRA"]
[TimeControl "5400+30"]

1. d4 {[%emt 0:00:12]} f5 {[%emt 0:00:06]} 2. Nf3 {[%emt 0:00:09]} Nf6 {[%emt 0:01:43]} 3. g3 {[%emt 0:00:03]} g6 {[%emt 0:00:17]} 4. Bg2 {[%emt 0:00:02]} Bg7 {[%emt 0:00:14]} 5. O-O {[%emt 0:00:04]} O-O {[%emt 0:00:14]} 6. c4 {[%emt 0:00:02]} d6 {[%emt 0:00:16]} 7. Nc3 {[%emt 0:00:02]} c6 {[%emt 0:00:08]} 8. d5 {[%emt 0:00:02]} e5 {[%emt 0:00:38]} 9. e4 {[%emt 0:00:08]} c5 {[%emt 0:04:25]} 10. Re1 {[%emt 0:02:59]} Na6 {[%emt 0:02:54]} 11. a3 {[%emt 0:00:45]} Nc7 {[%emt 0:00:15]} 12. Qc2 {[%emt 0:01:41]} Bd7 {[%emt 0:02:06]} 13. Qe2 {[%emt 0:11:51]} Qe7 {[%emt 0:08:12]} 14. b4 {[%emt 0:09:48]} b6 {[%emt 0:00:24]} 15. Qc2 {[%emt 0:04:28]} Nh5 {[%emt 0:10:37]} 16. bxc5 {[%emt 0:02:44]} bxc5 {[%emt 0:00:58]} 17. Rb1 {[%emt 0:03:56]} Rab8 {[%emt 0:00:21]} 18. exf5 {[%emt 0:04:22]} Bxf5 {[%emt 0:05:33]} 19. Ne4 {[%emt 0:00:20]} Nf6 {[%emt 0:02:41]} 20. Nfd2 {[%emt 0:06:02]} Qd7 {[%emt 0:05:33]} 21. Nxf6+ {[%emt 0:02:10]} Bxf6 {[%emt 0:00:13]} 22. Ne4 {[%emt 0:00:05]} Bg7 {[%emt 0:00:20]} 23. Bd2 {[%emt 0:01:59]} Rfc8 {[%emt 0:04:37]} 24. Bf1 {[%emt 0:03:24]} Ne8 {[%emt 0:01:05]} 25. Rxb8 {[%emt 0:03:42]} Rxb8 {[%emt 0:00:08]} 26. Rb1 {[%emt 0:00:11]} Rxb1 {[%emt 0:09:17]} 27. Qxb1 {[%emt 0:00:41]} Bxe4 {[%emt 0:05:12]} 28. Qxe4 {[%emt 0:00:24]} Qf5 {[%emt 0:01:34]} 29. Qxf5 {[%emt 0:00:27]} gxf5 {[%emt 0:00:02]} 30. Bh3 {[%emt 0:00:01]} f4 {[%emt 0:01:52]} 31. Bd7 {[%emt 0:02:17]} Nf6 {[%emt 0:03:08]} 32. Be6+ {[%emt 0:02:40]} Kf8 {[%emt 0:00:13]} 33. gxf4 {[%emt 0:01:06]} Bh6 {[%emt 0:01:33]} 34. Bf5 {[%emt 0:02:53]} Kg7 {[%emt 0:08:32]} 35. Kg2 {[%emt 0:02:35]} Nh5 {[%emt 0:00:40]} 36. Ba5 {[%emt 0:01:32]} Nxf4+ {[%emt 0:06:24]} 37. Kf3 {[%emt 0:00:07]} Bg5 {[%emt 0:02:00]} 38. Bc7 {[%emt 0:00:49]} Be7 {[%emt 0:00:10]} 39. a4 {[%emt 0:00:28]} h6 {[%emt 0:00:39]} 40. a5 {[%emt 0:00:16]} Kf6 {[%emt 0:02:10]} 41. Bd7 {[%emt 0:03:23]} Nd3 {[%emt 0:05:29]} 42. a6 {[%emt 0:00:57]} Nb2 {[%emt 0:02:23]} 43. Bb5 {[%emt 0:00:10]} Kf5 {[%emt 0:00:45]} 44. Bb8 {[%emt 0:00:53]} e4+ {[%emt 0:00:36]} 45. Ke2 {[%emt 0:00:08]} Bd8 {[%emt 0:00:43]} 46. Bxa7 {[%emt 0:00:07]} Bc7 {[%emt 0:00:19]} 47. Bxc5 {[%emt 0:00:09]} 1-0

[Event "16th Marseille Festival 2023"]
[Site "Marseille"]
[Date "2023.12.30"]
[Round "4.7"]
[White "Gachbar, Imrane"]
[Black "Baroyan, Davit"]
[Result "1/2-1/2"]
[WhiteElo "1885"]
[BlackElo "2203"]
[PlyCount "67"]
[EventDate "2023.12.30"]
[EventType "swiss"]
[EventCountry "FRA"]
[TimeControl "5400+30"]

1. d4 {[%emt 0:00:39]} d5 {[%emt 0:00:06]} 2. c4 {[%emt 0:00:17]} e6 {[%emt 0:00:04]} 3. Nc3 {[%emt 0:00:07]} c6 {[%emt 0:00:03]} 4. cxd5 {[%emt 0:01:23]} exd5 {[%emt 0:00:05]} 5. Nf3 {[%emt 0:01:06]} Bd6 {[%emt 0:00:17]} 6. Bg5 {[%emt 0:01:26]} Qb6 {[%emt 0:00:41]} 7. Qc2 {[%emt 0:02:48]} Na6 {[%emt 0:00:49]} 8. e3 {[%emt 0:03:07]} Ne7 {[%emt 0:03:28]} 9. a3 {[%emt 0:03:10]} Bf5 {[%emt 0:00:48]} 10. Qd2 {[%emt 0:00:15]} Nc7 {[%emt 0:22:59]} 11. Bh4 {[%emt 0:05:47]} a5 {[%emt 0:05:13]} 12. Be2 {[%emt 0:07:54]} O-O {[%emt 0:02:58]} 13. Bg3 {[%emt 0:02:46]} Ne8 {[%emt 0:05:16]} 14. O-O {[%emt 0:02:49]} Bxg3 {[%emt 0:08:30]} 15. hxg3 {[%emt 0:02:47]} Qd8 {[%emt 0:02:06]} 16. b4 {[%emt 0:06:55]} b5 {[%emt 0:13:00]} 17. Ne5 {[%emt 0:03:54]} Nd6 {[%emt 0:05:22]} 18. Qb2 {[%emt 0:04:18]} f6 {[%emt 0:07:13]} 19. Nf3 {[%emt 0:06:59]} Nc4 {[%emt 0:00:47]} 20. Bxc4 {[%emt 0:00:26]} bxc4 {[%emt 0:00:04]} 21. Nh4 {[%emt 0:04:47]} Bd3 {[%emt 0:00:37]} 22. Rfe1 {[%emt 0:00:22]} Rb8 {[%emt 0:01:46]} 23. Na4 {[%emt 0:03:34]} g5 {[%emt 0:04:03]} 24. Nf3 {[%emt 0:03:13]} Rb5 {[%emt 0:01:09]} 25. Nc5 {[%emt 0:00:29]} Bf5 {[%emt 0:00:04]} 26. Qc3 {[%emt 0:00:42]} Nc8 {[%emt 0:02:38]} 27. Nd2 {[%emt 0:02:28]} Nd6 {[%emt 0:01:56]} 28. f3 {[%emt 0:01:15]} Nb7 {[%emt 0:03:47]} 29. e4 {[%emt 0:02:28]} Nxc5 {[%emt 0:00:11]} 30. bxc5 {[%emt 0:00:01]} Bg6 {[%emt 0:00:59]} 31. exd5 {[%emt 0:01:22]} Qxd5 {[%emt 0:02:42]} 32. Qxc4 {[%emt 0:26:56]} Rd8 {[%emt 0:06:49]} 33. Qc3 {[%emt 0:00:30]} Rf8 34. Nc4 {[%emt 0:00:30]} 1/2-1/2

[Event "16th Marseille Festival 2023"]
[Site "Marseille"]
[Date "2023.12.30"]
[Round "4.8"]
[White "Malka, Samuel"]
[Black "Yaghi, leen"]
[Result "1-0"]
[WhiteElo "2201"]
[BlackElo "1874"]
[PlyCount "53"]
[EventDate "2023.12.30"]
[EventType "swiss"]
[EventCountry "FRA"]
[TimeControl "5400+30"]

1. c4 {[%emt 0:01:22]} e5 {[%emt 0:01:00]} 2. Nc3 {[%emt 0:00:32]} Nc6 {[%emt 0:00:11]} 3. g3 {[%emt 0:01:49]} Nf6 {[%emt 0:00:42]} 4. Bg2 {[%emt 0:00:30]} Be7 {[%emt 0:00:44]} 5. a3 {[%emt 0:10:19]} a5 {[%emt 0:09:53]} 6. e3 {[%emt 0:00:39]} O-O {[%emt 0:00:08]} 7. Nge2 {[%emt 0:02:08]} d6 {[%emt 0:01:06]} 8. d4 {[%emt 0:06:57]} exd4 {[%emt 0:01:18]} 9. exd4 {[%emt 0:00:45]} Bg4 {[%emt 0:00:39]} 10. h3 {[%emt 0:00:54]} Bf5 {[%emt 0:04:05]} 11. g4 {[%emt 0:01:37]} Bg6 {[%emt 0:00:36]} 12. f4 {[%emt 0:02:25]} h5 {[%emt 0:16:35]} 13. g5 {[%emt 0:10:10]} Nd7 {[%emt 0:00:48]} 14. d5 {[%emt 0:00:28]} Ncb8 {[%emt 0:00:48]} 15. O-O {[%emt 0:03:26]} Nb6 {[%emt 0:09:50]} 16. f5 {[%emt 0:04:51]} Bh7 {[%emt 0:00:53]} 17. Ne4 {[%emt 0:01:07]} N8d7 {[%emt 0:11:06]} 18. Nd4 {[%emt 0:01:33]} Nxc4 {[%emt 0:04:41]} 19. Qxh5 {[%emt 0:03:03]} Nce5 {[%emt 0:00:09]} 20. Bd2 {[%emt 0:08:13]} Nc5 {[%emt 0:04:41]} 21. Rf4 {[%emt 0:06:07]} Bg6 {[%emt 0:11:42]} 22. fxg6 {[%emt 0:02:07]} Nxg6 {[%emt 0:00:01]} 23. Rff1 {[%emt 0:02:50]} Re8 {[%emt 0:03:00]} 24. Nxc5 {[%emt 0:04:42]} dxc5 {[%emt 0:00:01]} 25. Ne6 {[%emt 0:03:38]} Qd6 {[%emt 0:06:57]} 26. Rxf7 {[%emt 0:01:00]} Kxf7 {[%emt 0:00:54]} 27. Rf1+ {[%emt 0:00:15]} 1-0

[Event "16th Marseille Festival 2023"]
[Site "Marseille"]
[Date "2023.12.30"]
[Round "5.1"]
[White "Lamard, Guillaume"]
[Black "Bilych, Olexiy"]
[Result "1/2-1/2"]
[WhiteElo "2497"]
[BlackElo "2433"]
[PlyCount "101"]
[EventDate "2023.12.30"]
[EventType "swiss"]
[EventCountry "FRA"]
[TimeControl "5400+30"]

1. d4 {[%emt 0:00:02]} d5 {[%emt 0:00:05]} 2. c4 {[%emt 0:00:04]} e6 {[%emt 0:00:04]} 3. Nf3 {[%emt 0:00:11]} Nf6 {[%emt 0:00:06]} 4. g3 {[%emt 0:00:02]} Bb4+ {[%emt 0:00:05]} 5. Bd2 {[%emt 0:00:04]} Be7 {[%emt 0:00:05]} 6. Bg2 {[%emt 0:00:03]} O-O {[%emt 0:00:06]} 7. Qc2 {[%emt 0:00:48]} Nbd7 {[%emt 0:00:40]} 8. h4 {[%emt 0:00:55]} c6 {[%emt 0:01:16]} 9. Nc3 {[%emt 0:00:11]} dxc4 {[%emt 0:00:12]} 10. Rd1 {[%emt 0:00:21]} b5 {[%emt 0:01:45]} 11. Ne5 {[%emt 0:00:05]} Nxe5 {[%emt 0:00:07]} 12. dxe5 {[%emt 0:00:03]} Nd5 {[%emt 0:00:04]} 13. Ne4 {[%emt 0:00:15]} Bb7 {[%emt 0:00:17]} 14. Ng5 {[%emt 0:03:05]} g6 {[%emt 0:00:11]} 15. Qc1 {[%emt 0:13:11]} Qc7 {[%emt 0:09:10]} 16. h5 {[%emt 0:00:06]} Bxg5 {[%emt 0:15:07]} 17. Bxg5 {[%emt 0:00:35]} Qxe5 {[%emt 0:00:04]} 18. Rh4 {[%emt 0:22:03]} f6 {[%emt 0:13:59]} 19. Bf4 {[%emt 0:02:40]} Nxf4 {[%emt 0:00:42]} 20. gxf4 {[%emt 0:00:03]} Qc7 {[%emt 0:00:31]} 21. Qe3 {[%emt 0:18:58]} Rad8 {[%emt 0:05:51]} 22. Qxe6+ {[%emt 0:01:56]} Qf7 {[%emt 0:00:07]} 23. Qxf7+ {[%emt 0:00:10]} Kxf7 {[%emt 0:00:05]} 24. hxg6+ {[%emt 0:00:04]} Kxg6 {[%emt 0:00:05]} 25. Rc1 {[%emt 0:00:13]} f5 {[%emt 0:04:43]} 26. Rc3 {[%emt 0:00:31]} h6 {[%emt 0:06:23]} 27. Rch3 {[%emt 0:11:57]} Rh8 {[%emt 0:00:18]} 28. e4 {[%emt 0:00:56]} Bc8 {[%emt 0:02:48]} 29. e5 {[%emt 0:00:29]} Be6 {[%emt 0:01:36]} 30. Bxc6 {[%emt 0:04:36]} b4 {[%emt 0:00:06]} 31. Bf3 {[%emt 0:00:04]} Rh7 {[%emt 0:06:22]} 32. Bh5+ {[%emt 0:01:02]} Kg7 {[%emt 0:00:08]} 33. Rg3+ {[%emt 0:00:22]} Kf8 {[%emt 0:00:21]} 34. Rg6 {[%emt 0:02:14]} Ke7 {[%emt 0:00:22]} 35. Bd1 {[%emt 0:04:59]} h5 {[%emt 0:08:15]} 36. Rg5 {[%emt 0:02:57]} c3 {[%emt 0:02:12]} 37. bxc3 {[%emt 0:00:05]} bxc3 {[%emt 0:00:03]} 38. Rhxh5 {[%emt 0:02:58]} Rxh5 {[%emt 0:00:06]} 39. Rxh5 {[%emt 0:00:04]} Rd4 {[%emt 0:00:46]} 40. Rh3 {[%emt 0:03:49]} Rxf4 {[%emt 0:01:12]} 41. Rxc3 {[%emt 0:00:15]} Re4+ {[%emt 0:00:53]} 42. Kd2 {[%emt 0:01:20]} Bxa2 {[%emt 0:00:56]} 43. Ra3 {[%emt 0:01:18]} Bd5 {[%emt 0:03:07]} 44. Rxa7+ {[%emt 0:01:20]} Ke6 {[%emt 0:00:14]} 45. Bc2 {[%emt 0:01:07]} Rf4 {[%emt 0:00:25]} 46. Ke3 {[%emt 0:00:48]} Rf3+ {[%emt 0:00:13]} 47. Ke2 {[%emt 0:00:05]} Rc3 {[%emt 0:00:29]} 48. Bd3 {[%emt 0:00:28]} Kxe5 {[%emt 0:00:44]} 49. Ra5 {[%emt 0:00:05]} f4 {[%emt 0:00:36]} 50. Kd2 {[%emt 0:01:49]} Rc7 {[%emt 0:00:11]} 51. f3 {[%emt 0:01:17]} 1/2-1/2

[Event "16th Marseille Festival 2023"]
[Site "Marseille"]
[Date "2023.12.30"]
[Round "5.2"]
[White "Gusain, Himal"]
[Black "Avanesyan, Davit"]
[Result "1-0"]
[WhiteElo "2457"]
[BlackElo "2142"]
[PlyCount "89"]
[EventDate "2023.12.30"]
[EventType "swiss"]
[EventCountry "FRA"]
[TimeControl "5400+30"]

1. Nf3 {[%emt 0:11:36]} Nf6 {[%emt 0:00:06]} 2. b3 {[%emt 0:00:04]} g6 {[%emt 0:00:29]} 3. g3 {[%emt 0:00:10]} Bg7 {[%emt 0:00:03]} 4. Bb2 {[%emt 0:00:05]} O-O {[%emt 0:00:12]} 5. Bg2 {[%emt 0:00:15]} d6 {[%emt 0:00:11]} 6. d4 {[%emt 0:00:06]} c6 {[%emt 0:00:15]} 7. O-O {[%emt 0:00:39]} b5 {[%emt 0:07:46]} 8. Re1 {[%emt 0:01:38]} Bb7 {[%emt 0:00:45]} 9. e4 {[%emt 0:00:42]} c5 {[%emt 0:01:35]} 10. e5 {[%emt 0:03:58]} dxe5 {[%emt 0:00:07]} 11. dxe5 {[%emt 0:00:03]} Qxd1 {[%emt 0:00:15]} 12. Rxd1 {[%emt 0:00:05]} Ne8 {[%emt 0:02:42]} 13. Nbd2 {[%emt 0:05:44]} Nc7 {[%emt 0:00:34]} 14. a4 {[%emt 0:02:23]} a6 {[%emt 0:01:49]} 15. Nf1 {[%emt 0:02:19]} h6 {[%emt 0:19:09]} 16. Ne3 {[%emt 0:00:56]} Bc6 {[%emt 0:09:28]} 17. c4 {[%emt 0:04:40]} bxc4 {[%emt 0:08:32]} 18. bxc4 {[%emt 0:08:50]} Ra7 {[%emt 0:01:41]} 19. Nd5 {[%emt 0:00:23]} Nxd5 {[%emt 0:01:00]} 20. cxd5 {[%emt 0:00:08]} Ba8 {[%emt 0:00:03]} 21. Nd2 {[%emt 0:03:48]} e6 {[%emt 0:00:14]} 22. Nc4 {[%emt 0:11:30]} exd5 {[%emt 0:00:17]} 23. Bxd5 {[%emt 0:00:20]} Bxd5 {[%emt 0:00:59]} 24. Rxd5 {[%emt 0:00:23]} Rb7 {[%emt 0:00:20]} 25. Ba3 {[%emt 0:01:23]} Re8 {[%emt 0:05:28]} 26. Rad1 {[%emt 0:01:28]} Bf8 {[%emt 0:00:03]} 27. Rd8 {[%emt 0:01:47]} Rxd8 {[%emt 0:00:44]} 28. Rxd8 {[%emt 0:00:16]} Kg7 {[%emt 0:03:57]} 29. Na5 {[%emt 0:02:46]} Rb6 {[%emt 0:04:56]} 30. Kg2 {[%emt 0:00:08]} Nc6 {[%emt 0:00:16]} 31. Rxf8 {[%emt 0:00:08]} Nxa5 {[%emt 0:00:07]} 32. Bxc5 {[%emt 0:05:29]} Rc6 {[%emt 0:00:38]} 33. Bb4 {[%emt 0:00:40]} Rc4 {[%emt 0:00:07]} 34. Bd6 {[%emt 0:00:05]} Rxa4 {[%emt 0:01:19]} 35. Rc8 {[%emt 0:01:15]} Nc4 {[%emt 0:02:24]} 36. Bf8+ {[%emt 0:00:24]} Kh7 {[%emt 0:00:07]} 37. Be7 {[%emt 0:00:06]} g5 {[%emt 0:00:11]} 38. Bf6 {[%emt 0:00:08]} Kg6 {[%emt 0:00:18]} 39. g4 {[%emt 0:00:32]} Nb6 {[%emt 0:06:36]} 40. Rg8+ {[%emt 0:01:59]} Kh7 {[%emt 0:00:05]} 41. Rg7+ {[%emt 0:00:06]} Kh8 {[%emt 0:00:01]} 42. Rxg5+ {[%emt 0:00:40]} Kh7 {[%emt 0:00:01]} 43. Rg7+ {[%emt 0:00:02]} Kh8 {[%emt 0:00:00]} 44. e6 {[%emt 0:02:06]} Rf4 {[%emt 0:01:30]} 45. Rxf7+ {[%emt 0:05:55]} 1-0

[Event "16th Marseille Festival 2023"]
[Site "Marseille"]
[Date "2023.12.30"]
[Round "5.3"]
[White "Malka, Samuel"]
[Black "Girel, Joseph"]
[Result "0-1"]
[WhiteElo "2201"]
[BlackElo "2495"]
[PlyCount "36"]
[EventDate "2023.12.30"]
[EventType "swiss"]
[EventCountry "FRA"]
[TimeControl "5400+30"]

1. d4 {[%emt 0:00:41]} Nf6 {[%emt 0:00:58]} 2. c4 {[%emt 0:00:10]} e6 {[%emt 0:00:09]} 3. Nf3 {[%emt 0:00:06]} Bb4+ {[%emt 0:00:45]} 4. Bd2 {[%emt 0:00:13]} Be7 {[%emt 0:00:45]} 5. Nc3 {[%emt 0:06:23]} O-O {[%emt 0:00:21]} 6. Qc2 {[%emt 0:03:40]} d5 {[%emt 0:02:18]} 7. g4 {[%emt 0:10:32]} dxc4 {[%emt 0:06:11]} 8. g5 {[%emt 0:08:23]} Nd5 {[%emt 0:00:37]} 9. O-O-O {[%emt 0:04:45]} Nc6 {[%emt 0:09:22]} 10. h4 {[%emt 0:07:29]} b5 {[%emt 0:05:07]} 11. h5 {[%emt 0:14:08]} b4 {[%emt 0:02:03]} 12. Nxd5 {[%emt 0:00:05]} exd5 {[%emt 0:00:13]} 13. g6 {[%emt 0:03:47]} fxg6 {[%emt 0:09:30]} 14. hxg6 {[%emt 0:00:08]} Bf5 {[%emt 0:00:41]} 15. e4 {[%emt 0:00:17]} Bxg6 {[%emt 0:03:21]} 16. Bxc4 {[%emt 0:00:08]} dxc4 {[%emt 0:01:31]} 17. Qxc4+ {[%emt 0:00:23]} Kh8 {[%emt 0:02:08]} 18. e5 {[%emt 0:04:40]} Be4 {[%emt 0:01:48]} 0-1